Workbook

Sheet Introduction
E5: Carbon Trust Waste Calculation - First Certification
E6: Instructions:
F8: Please fill in the required information in the BLUE tabs. The ORANGE tab provides information for the assessment form . GREY tabs are for information or assessor use only
F9: Within each tab, the cells are colour coded to indicate their function. The colour coding works as follows:
F10: Complete
F11: Automatic calculation
F12: To be completed by assessor
F14: The 'Waste calculation' tab should be used to input all common waste arisings.
F15: The 'Waste Adjustments' tab should be used for data on adjustments which must be made.
F16: The 'Reduction' tab is where the reduction over the assessment period is calculated.
F17: The 'Data sources' tab should be used to provide references for all of the data you have entered.
F20: Version History
F21: CTCWaste_spreadsheet_v2_6
F22: 2014-01-01
F24: User agreement
F25: © The Carbon Trust 2014. All rights reserved. Any trademarks, servicemarks or logos used in this document are the property of the Carbon Trust and copyright is licensed to the Carbon Trust. Nothing in this document shall be construed as granting any licence or right to use or reproduce any of the trademarks, service marks, logos, copyright or any proprietary information in any way without the Carbon Trust’s prior written permission. The Carbon Trust enforces infringements of its intellectual property rights to the full extent permitted by law. The Carbon Trust Certification Limited is a subsidiary of the Carbon Trust.

Sheet Instructions (hidden)
B1: INSTRUCTIONS
B4: General instructions
B5: =MAX($B$1:B3)+1 -> 1 | C5: Sheets are colour coded:
D6: Dark blue sheets must be completed
D7: Light blue sheets may need to be completed
D8: Grey sheets provide information only
D9: No data needs to be entered, but sheets are important for checking issues and showing final output
B10: =MAX($B$1:B5)+1 -> 2 | C10: On all sheets, cells are colour coded: - Cells required for level 1 and level 2 are pale blue - Cells required for level 2 only are pink - Orange cells are for optional information - Cells that calculate automatically are yellow Note that 'level' is a Carbon Trust Standard term, while 'Scope' is a GHG Protocol term. The two are not identical.
B11: =MAX($B$1:B10)+1 -> 3 | C11: The 'Comments' column should be used to provide any further information. For example: - Details of sources - Description of calculation/estimation approach and emissions factors used - Any other relevant information The 'Notes' column contains information or instructions to help the user of the spreadsheet, and should not be edited
B13: On 'Footprint Calculation' Sheet:
B14: =MAX($B$1:B13)+1 -> 4 | C14: Insert the end date of the compliance period (DD/MM/YYYY) in cell E9. This is the end date of the most recent year for which the footprint is measured.
B15: =MAX($B$1:B14)+1 -> 5 | C15: Input data for different emission sources ensuring units column (column C) is correct and noting the data source in Column I - For a level 1 footprint, complete all relevant pale blue cells - For a level 2 footprint, complete all relevant pale blue and pink cells Use the plus symbol to the left of the sheet for extra rows if required For some sources, the units and emissions factors have been pre-filled with typical values (e.g. kWh and UK grid emissions for electricity). These values can be changed if the company reports in a different unit, but the emissions factor would also have to be changed in this case
B16: =MAX($B$1:B15)+1 -> 6 | C16: Identify relevant emission factors (some common factors are listed on the 'Emissions Factors' sheets, for others use appropriate source e.g. DEFRA's Corporate Reporting Guidelines) and insert in Column D, noting the source in Column I if non-standard
B17: =MAX($B$1:B16)+1 -> 7 | C17: Ensure any exported heat or electricity is reported in rows 71 & 72 (as a positive value) and use DEFRA's guidelines to calculate relevant emission factors to insert in Column D
B19: On 'Other emissions' Sheet:
B20: =MAX($B$1:B19)+1 -> 8 | C20: If there is not enough space on the 'Footprint calculation' sheet, please record any other emissions here
B22: On 'CHP' Sheet:
B23: =MAX($B$1:B22)+1 -> 9 | C23: This sheet should be used if emissions from CHP need to be allocated - i.e. if the organisation has a CHP plant and exports some of the heat or electricity, or if it imports energy produced from CHP elsewhere.
B24: =MAX($B$1:B23)+1 -> 10 | C24: Adjustments to the footprint for imports or exports automatically feed through to the 'Footprint calculation' sheet
B26: On 'Adjustments' Sheet:
B27: =MAX($B$1:B26)+1 -> 11 | C27: In order for a like-for-like footprint to be compared across the years, the footprint must be adjusted for any structural changes (such as outsourcing, divestments, acquisitions) over the time period. Use the 'Adjustments' sheet to calculate the footprint of the section of the organisation to be excluded e.g., if subsidiary X of an organisation was divested in Year -1, then the Year -2 footprint and Year -1 footprint must be adjusted downwards as if subsidiary X were never part of the footprint.
B29: On 'Reduction' Sheet:
B30: =MAX($B$1:B29)+1 -> 12 | C30: This sheet should be used for all organisations where the reduction requirement will be based on 2 or more years of data
B31: =MAX($B$1:B30)+1 -> 13 | C31: In row 10, report whether a level 1 or level 2 footprint has been measured for each relevant year
B32: =MAX($B$1:B31)+1 -> 14 | C32: In row 15, specify the denominator to be used for the relative benchmark (e.g., FTEs, tonne product, no. of items), the annual data and source of data
B33: =MAX($B$1:B32)+1 -> 15 | C33: In row 16, insert annual turnover figures, ensuring units are correct
B34: =MAX($B$1:B33)+1 -> 16 | C34: If the footprint is adjusted for structural changes (see 12 above), then the benchmark and turnover should also be adjusted using rows 24-26.
B35: =MAX($B$1:B34)+1 -> 17 | C35: In row 28, adjust the inflation figures to make relevant for the geographic location(s) of the footprint, using weighted averages of different countries or regions if necessary
B36: =MAX($B$1:B35)+1 -> 18 | C36: Cells D40, D41, D42 should remain unchanged unless the organisation is certifying significant operations outside of the OECD region in which case these numbers should be replaced with relevant economic growth factors for the region (to be agreed with the Carbon Trust Standard Company)
B37: =MAX($B$1:B36)+1 -> 19 | C37: Rows 44-46 will calculate whether the organisation meets the absolute or relative reduction requirements
B39: On 'Reduction - SME' Sheet:
B40: =MAX($B$1:B39)+1 -> 20 | C40: This sheet should be used for small organisations (<50k energy spend) where assessment will be made based on 1 year of data, plus quantified project reductions
B41: =MAX($B$1:B40)+1 -> 21 | C41: Enter details of quantified project CO2 reductions in rows 10 to 17
B42: =MAX($B$1:B41)+1 -> 22 | C42: In Cell D24 enter whether a Level 1 or 2 footprint is being used. Cell D31 will show whether the organisation has met the reduction targets
B44: Completing the Assessment Form
B45: =MAX($B$1:B44)+1 -> 23 | C45: Use the data from 'Data for assessment form' to complete relevant sections of the assessment form

Sheet Waste calculation
D4: Carbon Trust Certification Limited
D5: Waste Arisings Calculation
D11: Complete for assessment
D12: Automatic calculation
D13: Cells to be completed by assessor
D15: ***PLEASE READ*** Instructions: Please use this tab to input the organisation's waste arisings data. Please note: This tab includes space for the most common waste types. If the organisation has waste arisings from sources not listed in this tab, please use the 'Other waste' tab to include these.
G17: Organisation name | I17: Assessor name
G18: Date spreadsheet completed | I18: Type of Service
G19: Data year end date
F20: =IF(SUM(H19)*SUM(H18)=0,"",IF(H18-H19>276,"Error: Footprint must be completed within 9 months of compliance period end","")) -> 
F21: Units | G21: Year -2 | L21: Year -1 | Q21: Year 0
G22: Year end date | L22: Year end date | Q22: Year end date | W22: Activity Data Source | X22: Assessor Comments
W23: e.g. e.g. from waste transfer notes, software packages, or spreadsheets, raw data evidence presented in evidence pack | X23: e.g. explanation of data quality, large year-on-year changes,etc.
D25: Waste Code | E25: Waste Type | F25: Unit | G25: Total | H25: Reuse | I25: Recycle | J25: Energy recovery | K25: Disposal | L25: Total | M25: Reuse | N25: Recycle | O25: Energy recovery | P25: Disposal | Q25: Total | R25: Reuse | S25: Recycle | T25: Energy recovery | U25: Disposal
D26: 01 | E26: WASTES RESULTING FROM EXPLORATION, MINING, QUARRYING, AND PHYSICAL AND CHEMICAL TREATMENT OF MINERALS | F26: Tonnes | G26: =IF(SUM(H26:K26)=0,"-",SUM(H26:K26)) -> - | H26: =IF(SUM(H27:H49)=0,"-",SUM(H27:H49)) -> - | I26: =IF(SUM(I27:I49)=0,"-",SUM(I27:I49)) -> - | J26: - | K26: - | L26: =IF(SUM(M26:P26)=0,"-",SUM(M26:P26)) -> - | M26: =IF(SUM(M27:M49)=0,"-",SUM(M27:M49)) -> - | N26: =IF(SUM(N27:N49)=0,"-",SUM(N27:N49)) -> - | O26: - | P26: - | Q26: =IF(SUM(R26:U26)=0,"-",SUM(R26:U26)) -> - | R26: =IF(SUM(R27:R49)=0,"-",SUM(R27:R49)) -> - | S26: =IF(SUM(S27:S49)=0,"-",SUM(S27:S49)) -> - | T26: - | U26: -
D27: 01 01 01 | E27: wastes from mineral metalliferous excavation | F27: Tonnes | G27: =IF(SUM(H27:K27)=0,"-",SUM(H27:K27)) -> - | L27: =IF(SUM(M27:P27)=0,"-",SUM(M27:P27)) -> - | Q27: =IF(SUM(R27:U27)=0,"-",SUM(R27:U27)) -> -
D28: 01 01 02 | E28: wastes from mineral non-metalliferous excavation | F28: Tonnes | G28: - | L28: - | Q28: -
D29: 01 03 04* | E29: acid-generating tailings from processing of sulphide ore | F29: Tonnes | G29: - | L29: - | Q29: -
D30: 01 03 05* | E30: other tailings containing dangerous substances | F30: Tonnes | G30: - | L30: - | Q30: -
D31: 01 03 06 | E31: tailings other than those mentioned in 01 03 04 and 01 03 05 | F31: Tonnes | G31: - | L31: - | Q31: -
D32: 01 03 07* | E32: other wastes containing dangerous substances from physical and chemical processing of metalliferous minerals | F32: Tonnes | G32: - | L32: - | Q32: -
D33: 01 03 08 | E33: dusty and powdery wastes other than those mentioned in 01 03 07 | F33: Tonnes | G33: - | L33: - | Q33: -
D34: 01 03 09 | E34: red mud from alumina production other than the wastes mentioned in 01 03 07 | F34: Tonnes | G34: - | L34: - | Q34: -
D35: 01 03 99 | E35: wastes not otherwise specified | F35: Tonnes | G35: - | L35: - | Q35: -
D36: 01 04 07* | E36: wastes containing dangerous substances from physical and chemical processing of non-metalliferous minerals | F36: Tonnes | G36: - | L36: - | Q36: -
D37: 01 04 08 | E37: waste gravel and crushed rocks other than those mentioned in 01 04 07 | F37: Tonnes | G37: - | L37: - | Q37: -
D38: 01 04 09 | E38: waste sand and clays | F38: Tonnes | G38: - | L38: - | Q38: -
D39: 01 04 10 | E39: dusty and powdery wastes other than those mentioned in 01 04 07 | F39: Tonnes | G39: - | L39: - | Q39: -
D40: 01 04 11 | E40: wastes from potash and rock salt processing other than those mentioned in 01 04 07 | F40: Tonnes | G40: - | L40: - | Q40: -
D41: 01 04 12 | E41: tailings and other wastes from washing and cleaning of minerals other than those mentioned in 01 04 07 and 01 04 11 | F41: Tonnes | G41: - | L41: - | Q41: -
D42: 01 04 13 | E42: wastes from stone cutting and sawing other than those mentioned in 01 04 07 | F42: Tonnes | G42: - | L42: - | Q42: -
D43: 01 04 99 | E43: wastes not otherwise specified | F43: Tonnes | G43: - | L43: - | Q43: -
D44: 01 05 04 | E44: freshwater drilling muds and wastes | F44: Tonnes | G44: - | L44: - | Q44: -
D45: 01 05 05* | E45: oil-containing drilling muds and wastes | F45: Tonnes | G45: - | L45: - | Q45: -
D46: 01 05 06* | E46: drilling muds and other drilling wastes containing dangerous substances | F46: Tonnes | G46: - | L46: - | Q46: -
D47: 01 05 07 | E47: barite-containing drilling muds and wastes other than those mentioned in 01 05 05 and 01 05 06 | F47: Tonnes | G47: - | L47: - | Q47: -
D48: 01 05 08 | E48: chloride-containing drilling muds and wastes other than those mentioned in 01 05 05 and 01 05 06 | F48: Tonnes | G48: - | L48: - | Q48: -
D49: 01 05 99 | E49: wastes not otherwise specified | F49: Tonnes | G49: - | L49: - | Q49: -
D50: 02 | E50: WASTES FROM AGRICULTURE, HORTICULTURE, AQUACULTURE, FORESTRY, HUNTING AND FISHING, FOOD PREPARATION AND PROCESSING | F50: Tonnes | G50: - | H50: =IF(SUM(H51:H88)=0,"-",SUM(H51:H89)) -> - | I50: =IF(SUM(I51:I88)=0,"-",SUM(I51:I89)) -> - | J50: - | K50: - | L50: - | M50: =IF(SUM(M51:M88)=0,"-",SUM(M51:M89)) -> - | N50: =IF(SUM(N51:N88)=0,"-",SUM(N51:N89)) -> - | O50: - | P50: - | Q50: - | R50: =IF(SUM(R51:R88)=0,"-",SUM(R51:R89)) -> - | S50: =IF(SUM(S51:S88)=0,"-",SUM(S51:S89)) -> - | T50: - | U50: -
D51: 02 01 01 | E51: sludges from washing and cleaning | F51: Tonnes | G51: - | L51: - | Q51: -
D52: 02 01 02 | E52: animal-tissue waste | F52: Tonnes | G52: - | L52: - | Q52: -
D53: 02 01 03 | E53: plant-tissue waste | F53: Tonnes | G53: - | L53: - | Q53: -
D54: 02 01 04 | E54: waste plastics (except packaging) | F54: Tonnes | G54: - | L54: - | Q54: -
D55: 02 01 06 | E55: animal faeces, urine and manure (including spoiled straw), effluent, collected separately and treated off-site | F55: Tonnes | G55: - | L55: - | Q55: -
D56: 02 01 07 | E56: wastes from forestry | F56: Tonnes | G56: - | L56: - | Q56: -
D57: 02 01 08* | E57: agrochemical waste containing dangerous substances | F57: Tonnes | G57: - | L57: - | Q57: -
D58: 02 01 09 | E58: agrochemical waste other than those mentioned in 02 01 08 | F58: Tonnes | G58: - | L58: - | Q58: -
D59: 02 01 10 | E59: waste metal | F59: Tonnes | G59: - | L59: - | Q59: -
D60: 02 01 99 | E60: wastes not otherwise specified | F60: Tonnes | G60: - | L60: - | Q60: -
D61: 02 02 01 | E61: sludges from washing and cleaning | F61: Tonnes | G61: - | L61: - | Q61: -
D62: 02 02 02 | E62: animal-tissue waste | F62: Tonnes | G62: - | L62: - | Q62: -
D63: 02 02 03 | E63: materials unsuitable for consumption or processing | F63: Tonnes | G63: - | L63: - | Q63: -
D64: 02 02 04 | E64: sludges from on-site effluent treatment | F64: Tonnes | G64: - | L64: - | Q64: -
D65: 02 02 99 | E65: wastes not otherwise specified | F65: Tonnes | G65: - | L65: - | Q65: -
D66: 02 03 01 | E66: sludges from washing, cleaning, peeling, centrifuging and separation | F66: Tonnes | G66: - | L66: - | Q66: -
D67: 02 03 02 | E67: wastes from preserving agents | F67: Tonnes | G67: - | L67: - | Q67: -
D68: 02 03 03 | E68: wastes from solvent extraction | F68: Tonnes | G68: - | L68: - | Q68: -
D69: 02 03 04 | E69: materials unsuitable for consumption or processing | F69: Tonnes | G69: - | L69: - | Q69: -
D70: 02 03 05 | E70: sludges from on-site effluent treatment | F70: Tonnes | G70: - | L70: - | Q70: -
D71: 02 03 99 | E71: wastes not otherwise specified | F71: Tonnes | G71: - | L71: - | Q71: -
D72: 02 04 01 | E72: soil from cleaning and washing beet | F72: Tonnes | G72: - | L72: - | Q72: -
D73: 02 04 02 | E73: off-specification calcium carbonate | F73: Tonnes | G73: - | L73: - | Q73: -
D74: 02 04 03 | E74: sludges from on-site effluent treatment | F74: Tonnes | G74: - | L74: - | Q74: -
D75: 02 04 99 | E75: wastes not otherwise specified | F75: Tonnes | G75: - | L75: - | Q75: -
D76: 02 05 01 | E76: materials unsuitable for consumption or processing | F76: Tonnes | G76: - | L76: - | Q76: -
D77: 02 05 02 | E77: sludges from on-site effluent treatment | F77: Tonnes | G77: - | L77: - | Q77: -
D78: 02 05 99 | E78: wastes not otherwise specified | F78: Tonnes | G78: - | L78: - | Q78: -
D79: 02 06 01 | E79: materials unsuitable for consumption or processing | F79: Tonnes | G79: - | L79: - | Q79: -
D80: 02 06 02 | E80: wastes from preserving agents | F80: Tonnes | G80: - | L80: - | Q80: -
D81: 02 06 03 | E81: sludges from on-site effluent treatment | F81: Tonnes | G81: - | L81: - | Q81: -
D82: 02 06 99 | E82: wastes not otherwise specified | F82: Tonnes | G82: - | L82: - | Q82: -
D83: 02 07 01 | E83: wastes from washing, cleaning and mechanical reduction of raw materials | F83: Tonnes | G83: - | L83: - | Q83: -
D84: 02 07 02 | E84: wastes from spirits distillation | F84: Tonnes | G84: - | L84: - | Q84: -
D85: 02 07 03 | E85: wastes from chemical treatment | F85: Tonnes | G85: - | L85: - | Q85: -
D86: 02 07 04 | E86: materials unsuitable for consumption or processing | F86: Tonnes | G86: - | L86: - | Q86: -
D87: 02 07 05 | E87: sludges from on-site effluent treatment | F87: Tonnes | G87: - | L87: - | Q87: -
D88: 02 07 99 | E88: wastes not otherwise specified | F88: Tonnes | G88: - | L88: - | Q88: -
D89: 03 | E89: WASTES FROM WOOD PROCESSING AND THE PRODUCTION OF PANELS AND FURNITURE, PULP, PAPER AND CARDBOARD | F89: Tonnes | G89: - | H89: =IF(SUM(H90:H108)=0,"-",SUM(H90:H108)) -> - | I89: =IF(SUM(I90:I108)=0,"-",SUM(I90:I108)) -> - | J89: - | K89: - | L89: - | M89: =IF(SUM(M90:M108)=0,"-",SUM(M90:M108)) -> - | N89: =IF(SUM(N90:N108)=0,"-",SUM(N90:N108)) -> - | O89: - | P89: - | Q89: - | R89: =IF(SUM(R90:R108)=0,"-",SUM(R90:R108)) -> - | S89: =IF(SUM(S90:S108)=0,"-",SUM(S90:S108)) -> - | T89: - | U89: -
D90: 03 01 01 | E90: waste bark and cork | F90: Tonnes | G90: - | L90: - | Q90: -
D91: 03 01 04* | E91: sawdust, shavings, cuttings, wood, particle board and veneer containing dangerous substances | F91: Tonnes | G91: =IF(SUM(H91:K91)=0,"-",SUM(H91:K91)) -> - | L91: =IF(SUM(M91:P91)=0,"-",SUM(M91:P91)) -> - | Q91: =IF(SUM(R91:U91)=0,"-",SUM(R91:U91)) -> -
D92: 03 01 05 | E92: sawdust, shavings, cuttings, wood, particle board and veneer other than those mentioned in 03 01 04 | F92: Tonnes | G92: - | L92: - | Q92: -
D93: 03 01 99 | E93: wastes not otherwise specified | F93: Tonnes | G93: - | L93: - | Q93: -
D94: 03 02 01* | E94: non-halogenated organic wood preservatives | F94: Tonnes | G94: - | L94: - | Q94: -
D95: 03 02 02* | E95: organochlorinated wood preservatives | F95: Tonnes | G95: - | L95: - | Q95: -
D96: 03 02 03* | E96: organometallic wood preservatives | F96: Tonnes | G96: - | L96: - | Q96: -
D97: 03 02 04* | E97: inorganic wood preservatives | F97: Tonnes | G97: - | L97: - | Q97: -
D98: 03 02 05* | E98: other wood preservatives containing dangerous substances | F98: Tonnes | G98: - | L98: - | Q98: -
D99: 03 02 99 | E99: wood preservatives not otherwise specified | F99: Tonnes | G99: - | L99: - | Q99: -
D100: 03 03 01 | E100: waste bark and wood | F100: Tonnes | G100: - | L100: - | Q100: -
D101: 03 03 02 | E101: green liquor sludge (from recovery of cooking liquor) | F101: Tonnes | G101: - | L101: - | Q101: -
D102: 03 03 05 | E102: de-inking sludges from paper recycling | F102: Tonnes | G102: - | L102: - | Q102: -
D103: 03 03 07 | E103: mechanically separated rejects from pulping of waste paper and cardboard | F103: Tonnes | G103: - | L103: - | Q103: -
D104: 03 03 08 | E104: wastes from sorting of paper and cardboard destined for recycling | F104: Tonnes | G104: - | L104: - | Q104: -
D105: 03 03 09 | E105: lime mud waste | F105: Tonnes | G105: - | L105: - | Q105: -
D106: 03 03 10 | E106: fibre rejects, fibre-, filler- and coating-sludges from mechanical separation | F106: Tonnes | G106: - | L106: - | Q106: -
D107: 03 03 11 | E107: sludges from on-site effluent treatment other than those mentioned in 03 03 10 | F107: Tonnes | G107: - | L107: - | Q107: -
D108: 03 03 99 | E108: wastes not otherwise specified | F108: Tonnes | G108: - | L108: - | Q108: -
D109: 04 | E109: WASTES FROM THE LEATHER, FUR AND TEXTILE INDUSTRIES | F109: Tonnes | G109: - | H109: =IF(SUM(H110:H130)=0,"-",SUM(H110:H130)) -> - | I109: =IF(SUM(I110:I130)=0,"-",SUM(I110:I130)) -> - | J109: - | K109: - | L109: - | M109: =IF(SUM(M110:M130)=0,"-",SUM(M110:M130)) -> - | N109: =IF(SUM(N110:N130)=0,"-",SUM(N110:N130)) -> - | O109: - | P109: - | Q109: - | R109: =IF(SUM(R110:R130)=0,"-",SUM(R110:R130)) -> - | S109: =IF(SUM(S110:S130)=0,"-",SUM(S110:S130)) -> - | T109: - | U109: -
D110: 04 01 01 | E110: fleshings and lime split wastes | F110: Tonnes | G110: - | L110: - | Q110: -
D111: 04 01 02 | E111: liming waste | F111: Tonnes | G111: - | L111: - | Q111: -
D112: 04 01 03* | E112: degreasing wastes containing solvents without a liquid phase | F112: Tonnes | G112: - | L112: - | Q112: -
D113: 04 01 04 | E113: tanning liquor containing chromium | F113: Tonnes | G113: - | L113: - | Q113: -
D114: 04 01 05 | E114: tanning liquor free of chromium | F114: Tonnes | G114: - | L114: - | Q114: -
D115: 04 01 06 | E115: sludges, in particular from on-site effluent treatment containing chromium | F115: Tonnes | G115: - | L115: - | Q115: -
D116: 04 01 07 | E116: sludges, in particular from on-site effluent treatment free of chromium | F116: Tonnes | G116: - | L116: - | Q116: -
D117: 04 01 08 | E117: waste tanned leather (blue sheetings, shavings, cuttings, buffing dust) containing chromium | F117: Tonnes | G117: - | L117: - | Q117: -
D118: 04 01 09 | E118: wastes from dressing and finishing | F118: Tonnes | G118: - | L118: - | Q118: -
D119: 04 01 99 | E119: wastes not otherwise specified | F119: Tonnes | G119: - | L119: - | Q119: -
D120: 04 02 09 | E120: wastes from composite materials (impregnated textile, elastomer, plastomer) | F120: Tonnes | G120: - | L120: - | Q120: -
D121: 04 02 10 | E121: organic matter from natural products (for example grease, wax) | F121: Tonnes | G121: - | L121: - | Q121: -
D122: 04 02 14* | E122: wastes from finishing containing organic solvents | F122: Tonnes | G122: - | L122: - | Q122: -
D123: 04 02 15 | E123: wastes from finishing other than those mentioned in 04 02 14 | F123: Tonnes | G123: - | L123: - | Q123: -
D124: 04 02 16* | E124: dyestuffs and pigments containing dangerous substances | F124: Tonnes | G124: - | L124: - | Q124: -
D125: 04 02 17 | E125: dyestuffs and pigments other than those mentioned in 04 02 16 | F125: Tonnes | G125: - | L125: - | Q125: -
D126: 04 02 19* | E126: sludges from on-site effluent treatment containing dangerous substances | F126: Tonnes | G126: - | L126: - | Q126: -
D127: 04 02 20 | E127: Sludges from on-site effluent treatment other than those mentioned in 04 02 19 | F127: Tonnes | G127: - | L127: - | Q127: -
D128: 04 02 21 | E128: wastes from unprocessed textile fibres | F128: Tonnes | G128: - | L128: - | Q128: -
D129: 04 02 22 | E129: wastes from processed textile fibres | F129: Tonnes | G129: - | L129: - | Q129: -
D130: 04 02 99 | E130: wastes not otherwise specified | F130: Tonnes | G130: - | L130: - | Q130: -
D131: 05 | E131: WASTES FROM PETROLEUM REFINING, NATURAL GAS PURIFICATION AND PYROLYTIC TREATMENT OF COAL | F131: Tonnes | G131: - | H131: =IF(SUM(H132:H155)=0,"-",SUM(H132:H155)) -> - | I131: =IF(SUM(I132:I155)=0,"-",SUM(I132:I155)) -> - | J131: - | K131: - | L131: - | M131: =IF(SUM(M132:M155)=0,"-",SUM(M132:M155)) -> - | N131: =IF(SUM(N132:N155)=0,"-",SUM(N132:N155)) -> - | O131: - | P131: - | Q131: - | R131: =IF(SUM(R132:R155)=0,"-",SUM(R132:R155)) -> - | S131: =IF(SUM(S132:S155)=0,"-",SUM(S132:S155)) -> - | T131: - | U131: -
D132: 05 01 02* | E132: desalter sludges | F132: Tonnes | G132: - | L132: - | Q132: -
D133: 05 01 03* | E133: tank bottom sludges | F133: Tonnes | G133: - | L133: - | Q133: -
D134: 05 01 04* | E134: acid alkyl sludges | F134: Tonnes | G134: - | L134: - | Q134: -
D135: 05 01 05* | E135: oil spills | F135: Tonnes | G135: - | L135: - | Q135: -
D136: 05 01 06* | E136: oily sludges from maintenance operations of the plant or equipment | F136: Tonnes | G136: - | L136: - | Q136: -
D137: 05 01 07* | E137: acid tars | F137: Tonnes | G137: - | L137: - | Q137: -
D138: 05 01 08* | E138: other tars | F138: Tonnes | G138: - | L138: - | Q138: -
D139: 05 01 09* | E139: sludges from on-site effluent treatment containing dangerous substances | F139: Tonnes | G139: - | L139: - | Q139: -
D140: 05 01 10 | E140: Sludges from on-site effluent treatment other than those mentioned in 05 01 09 | F140: Tonnes | G140: - | L140: - | Q140: -
D141: 05 01 11* | E141: wastes from cleaning of fuels with bases | F141: Tonnes | G141: - | L141: - | Q141: -
D142: 05 01 12* | E142: oil containing acids | F142: Tonnes | G142: - | L142: - | Q142: -
D143: 05 01 13 | E143: boiler feedwater sludges | F143: Tonnes | G143: - | L143: - | Q143: -
D144: 05 01 14 | E144: wastes from cooling columns | F144: Tonnes | G144: - | L144: - | Q144: -
D145: 05 01 15* | E145: spent filter clays | F145: Tonnes | G145: - | L145: - | Q145: -
D146: 05 01 16 | E146: sulphur-containing wastes from petroleum desulphurisation | F146: Tonnes | G146: - | L146: - | Q146: -
D147: 05 01 17 | E147: bitumen | F147: Tonnes | G147: - | L147: - | Q147: -
D148: 05 01 99 | E148: wastes not otherwise specified | F148: Tonnes | G148: - | L148: - | Q148: -
D149: 05 06 01* | E149: acid tars | F149: Tonnes | G149: - | L149: - | Q149: -
D150: 05 06 03* | E150: other tars | F150: Tonnes | G150: - | L150: - | Q150: -
D151: 05 06 04 | E151: waste from cooling columns | F151: Tonnes | G151: - | L151: - | Q151: -
D152: 05 06 99 | E152: wastes not otherwise specified | F152: Tonnes | G152: - | L152: - | Q152: -
D153: 05 07 01* | E153: wastes containing mercury | F153: Tonnes | G153: - | L153: - | Q153: -
D154: 05 07 02 | E154: wastes containing sulphur | F154: Tonnes | G154: - | L154: - | Q154: -
D155: 05 07 99 | E155: wastes not otherwise specified | F155: Tonnes | G155: =IF(SUM(H155:K155)=0,"-",SUM(H155:K155)) -> - | L155: =IF(SUM(M155:P155)=0,"-",SUM(M155:P155)) -> - | Q155: =IF(SUM(R155:U155)=0,"-",SUM(R155:U155)) -> -
D156: 06 | E156: WASTES FROM INORGANIC CHEMICAL PROCESSES | F156: Tonnes | G156: - | H156: =IF(SUM(H157:H204)=0,"-",SUM(H157:H204)) -> - | I156: =IF(SUM(I157:I204)=0,"-",SUM(I157:I204)) -> - | J156: - | K156: - | L156: - | M156: =IF(SUM(M157:M204)=0,"-",SUM(M157:M204)) -> - | N156: =IF(SUM(N157:N204)=0,"-",SUM(N157:N204)) -> - | O156: - | P156: - | Q156: - | R156: =IF(SUM(R157:R204)=0,"-",SUM(R157:R204)) -> - | S156: =IF(SUM(S157:S204)=0,"-",SUM(S157:S204)) -> - | T156: - | U156: -
D157: 06 01 01* | E157: sulphuric acid and sulphurous acid | F157: Tonnes | G157: - | L157: - | Q157: -
D158: 06 01 02* | E158: hydrochloric acid | F158: Tonnes | G158: - | L158: - | Q158: -
D159: 06 01 03* | E159: hydrofluoric acid | F159: Tonnes | G159: - | L159: - | Q159: -
D160: 06 01 04* | E160: phosphoric and phosphorous acid | F160: Tonnes | G160: - | L160: - | Q160: -
D161: 06 01 05* | E161: nitric acid and nitrous acid | F161: Tonnes | G161: - | L161: - | Q161: -
D162: 06 01 06* | E162: other acids | F162: Tonnes | G162: - | L162: - | Q162: -
D163: 06 01 99 | E163: wastes not otherwise specified | F163: Tonnes | G163: - | L163: - | Q163: -
D164: 06 02 01* | E164: calcium hydroxide | F164: Tonnes | G164: - | L164: - | Q164: -
D165: 06 02 03* | E165: ammonium hydroxide | F165: Tonnes | G165: - | L165: - | Q165: -
D166: 06 02 04* | E166: sodium and potassium hydroxide | F166: Tonnes | G166: - | L166: - | Q166: -
D167: 06 02 05* | E167: other bases | F167: Tonnes | G167: - | L167: - | Q167: -
D168: 06 02 99 | E168: wastes not otherwise specified | F168: Tonnes | G168: - | L168: - | Q168: -
D169: 06 03 11* | E169: solid salts and solutions containing cyanides | F169: Tonnes | G169: - | L169: - | Q169: -
D170: 06 03 13* | E170: solid salts and solutions containing heavy metals | F170: Tonnes | G170: - | L170: - | Q170: -
D171: 06 03 14 | E171: solid salts and solutions other than those mentioned in 06 03 11 and 06 03 13 | F171: Tonnes | G171: - | L171: - | Q171: -
D172: 06 03 15* | E172: metallic oxides containing heavy metals | F172: Tonnes | G172: - | L172: - | Q172: -
D173: 06 03 16 | E173: metallic oxides other than those mentioned in 06 03 15 | F173: Tonnes | G173: - | L173: - | Q173: -
D174: 06 03 99 | E174: wastes not otherwise specified | F174: Tonnes | G174: - | L174: - | Q174: -
D175: 06 04 03* | E175: wastes containing arsenic | F175: Tonnes | G175: - | L175: - | Q175: -
D176: 06 04 04* | E176: wastes containing mercury | F176: Tonnes | G176: - | L176: - | Q176: -
D177: 06 04 05* | E177: wastes containing other heavy metals | F177: Tonnes | G177: - | L177: - | Q177: -
D178: 06 04 99 | E178: wastes not otherwise specified | F178: Tonnes | G178: - | L178: - | Q178: -
D179: 06 05 02* | E179: sludges from on-site effluent treatment containing dangerous substances | F179: Tonnes | G179: - | L179: - | Q179: -
D180: 06 05 03 | E180: sludges from on-site effluent treatment other than those mentioned in 06 05 02 | F180: Tonnes | G180: - | L180: - | Q180: -
D181: 06 06 02* | E181: wastes containing dangerous sulphides | F181: Tonnes | G181: - | L181: - | Q181: -
D182: 06 06 03 | E182: wastes containing sulphides other than those mentioned in 06 06 02 | F182: Tonnes | G182: - | L182: - | Q182: -
D183: 06 06 99 | E183: wastes not otherwise specified | F183: Tonnes | G183: - | L183: - | Q183: -
D184: 06 07 01* | E184: wastes containing asbestos from electrolysis | F184: Tonnes | G184: - | L184: - | Q184: -
D185: 06 07 02* | E185: activated carbon from chlorine production | F185: Tonnes | G185: - | L185: - | Q185: -
D186: 06 07 03* | E186: barium sulphate sludge containing mercury | F186: Tonnes | G186: - | L186: - | Q186: -
D187: 06 07 04* | E187: solutions and acids, for example contact acid | F187: Tonnes | G187: - | L187: - | Q187: -
D188: 06 07 99 | E188: wastes not otherwise specified | F188: Tonnes | G188: - | L188: - | Q188: -
D189: 06 08 02 | E189: wastes containing chlorosilanes | F189: Tonnes | G189: - | L189: - | Q189: -
D190: 06 08 99 | E190: wastes not otherwise specified | F190: Tonnes | G190: - | L190: - | Q190: -
D191: 06 09 02 | E191: phosphorous slag | F191: Tonnes | G191: - | L191: - | Q191: -
D192: 06 09 03* | E192: calcium-based reaction wastes containing or contaminated with dangerous substances | F192: Tonnes | G192: - | L192: - | Q192: -
D193: 06 09 04 | E193: calcium-based reaction wastes other than those mentioned in 06 09 03 | F193: Tonnes | G193: - | L193: - | Q193: -
D194: 06 09 99 | E194: wastes not otherwise specified | F194: Tonnes | G194: - | L194: - | Q194: -
D195: 06 10 02* | E195: wastes containing dangerous substances | F195: Tonnes | G195: - | L195: - | Q195: -
D196: 06 10 99 | E196: wastes not otherwise specified | F196: Tonnes | G196: - | L196: - | Q196: -
D197: 06 11 01 | E197: calcium-based reaction wastes from titanium dioxide production | F197: Tonnes | G197: - | L197: - | Q197: -
D198: 06 11 99 | E198: wastes not otherwise specified | F198: Tonnes | G198: - | L198: - | Q198: -
D199: 06 13 01* | E199: inorganic plant protection products, wood-preserving agents and other biocides. | F199: Tonnes | G199: - | L199: - | Q199: -
D200: 06 13 02* | E200: spent activated carbon (except 06 07 02) | F200: Tonnes | G200: - | L200: - | Q200: -
D201: 06 13 03 | E201: carbon black | F201: Tonnes | G201: - | L201: - | Q201: -
D202: 06 13 04* | E202: wastes from asbestos processing | F202: Tonnes | G202: - | L202: - | Q202: -
D203: 06 13 05* | E203: soot | F203: Tonnes | G203: - | L203: - | Q203: -
D204: 06 13 99 | E204: wastes not otherwise specified | F204: Tonnes | G204: - | L204: - | Q204: -
D205: 07 | E205: WASTES FROM ORGANIC CHEMICAL PROCESSES | F205: Tonnes | G205: - | H205: =IF(SUM(H206:H282)=0,"-",SUM(H206:H282)) -> - | I205: =IF(SUM(I206:I282)=0,"-",SUM(I206:I282)) -> - | J205: - | K205: - | L205: - | M205: =IF(SUM(M206:M282)=0,"-",SUM(M206:M282)) -> - | N205: =IF(SUM(N206:N282)=0,"-",SUM(N206:N282)) -> - | O205: - | P205: - | Q205: - | R205: =IF(SUM(R206:R282)=0,"-",SUM(R206:R282)) -> - | S205: =IF(SUM(S206:S282)=0,"-",SUM(S206:S282)) -> - | T205: - | U205: -
D206: 07 01 01* | E206: aqueous washing liquids and mother liquors | F206: Tonnes | G206: - | L206: - | Q206: -
D207: 07 01 03* | E207: organic halogenated solvents, washing liquids and mother liquors | F207: Tonnes | G207: - | L207: - | Q207: -
D208: 07 01 04* | E208: other organic solvents, washing liquids and mother liquors | F208: Tonnes | G208: - | L208: - | Q208: -
D209: 07 01 07* | E209: halogenated still bottoms and reaction residues | F209: Tonnes | G209: - | L209: - | Q209: -
D210: 07 01 08* | E210: other still bottoms and reaction residues | F210: Tonnes | G210: - | L210: - | Q210: -
D211: 07 01 09* | E211: halogenated filter cakes and spent absorbents | F211: Tonnes | G211: - | L211: - | Q211: -
... 698 more rows

Sheet Waste hierarchy calculation
D4: Carbon Trust Certification Limited
D5: Waste Hierarchy Calculation
E8: Total | F8: Reuse | G8: Recycle | H8: Energy recovery | I8: Disposal
D9: Year -2 | E9: =IF('Waste calculation'!G915="-","-",('Waste calculation'!G915)) -> - | F9: =IF('Waste calculation'!H915="-","-",('Waste calculation'!H915)) -> - | G9: =IF('Waste calculation'!I915="-","-",('Waste calculation'!I915)) -> - | H9: =IF('Waste calculation'!J915="-","-",('Waste calculation'!J915)) -> - | I9: =IF('Waste calculation'!K915="-","-",('Waste calculation'!K915)) -> -
D10: Year -1 | E10: =IF('Waste calculation'!L915="-","-",('Waste calculation'!L915)) -> - | F10: =IF('Waste calculation'!M915="-","-",('Waste calculation'!M915)) -> - | G10: =IF('Waste calculation'!N915="-","-",('Waste calculation'!N915)) -> - | H10: =IF('Waste calculation'!O915="-","-",('Waste calculation'!O915)) -> - | I10: =IF('Waste calculation'!P915="-","-",('Waste calculation'!P915)) -> -
D11: Year 0 | E11: =IF('Waste calculation'!Q915="-","-",('Waste calculation'!Q915)) -> - | F11: =IF('Waste calculation'!R915="-","-",('Waste calculation'!R915)) -> - | G11: =IF('Waste calculation'!S915="-","-",('Waste calculation'!S915)) -> - | H11: =IF('Waste calculation'!T915="-","-",('Waste calculation'!T915)) -> - | I11: =IF('Waste calculation'!U915="-","-",('Waste calculation'!U915)) -> -
E13: Total | F13: Reuse | G13: Recycle | H13: Energy recovery | I13: Disposal
D14: Year -2 | E14: =E9 -> - | F14: 5 | G14: 3 | H14: 2 | I14: 1
D15: Year -1 | E15: =E10 -> - | F15: 5 | G15: 3 | H15: 2 | I15: 1
D16: Year 0 | E16: - | F16: 5 | G16: 3 | H16: 2 | I16: 1
E18: Total | F18: Reuse | G18: Recycle | H18: Energy recovery | I18: Disposal | J18: Weighted sum | K18: Weighted score
D19: Year -2 | E19: =E9 -> - | F19: =IF(ISERROR(F9*F14),"-",F9*F14) -> - | G19: =IF(ISERROR(G9*G14),"-",G9*G14) -> - | H19: - | I19: - | J19: =IF(SUM(F19:I19)=0,"-",SUM(F19:I19)) -> - | K19: =IF(ISERROR(E19/J19),"-",E19/J19) -> -
D20: Year -1 | E20: =E10 -> - | F20: =IF(ISERROR(F10*F15),"-",F10*F15) -> - | G20: - | H20: - | I20: - | J20: =IF(SUM(F20:I20)=0,"-",SUM(F20:I20)) -> - | K20: =IF(ISERROR(E20/J20),"-",E20/J20) -> -
D21: Year 0 | E21: - | F21: - | G21: - | H21: - | I21: - | J21: - | K21: -
D23: Average Y-2 to Y-1 | E23: Year 0 | F23: Historical vs baseline score | G23: Waste hierarchy score
D24: =IF(ISERROR(AVERAGE(K19:K20)),"-",AVERAGE(K19:K20)) -> - | E24: =K21 -> - | F24: =IF(ISERROR(D24-E24),"-",D24-E24) -> - | G24: =IF(ISERROR(F24/D24),"-",F24/D24) -> -

Sheet Waste adjustments
D4: Carbon Trust Certification Limited
D5: Waste Arisings Calculation
D11: Complete for assessment
D12: Automatic calculation
D13: Cells to be completed by assessor
D15: ***PLEASE READ*** Instructions: Please use this tab to input the organisation's waste arisings data. Please note: This tab includes space for the most common waste types. If the organisation has waste arisings from sources not listed in this tab, please use the 'Other waste' tab to include these.
G17: Organisation name | I17: Assessor name
G18: Date spreadsheet completed | I18: Type of Service
G19: Data year end date
F20: =IF(SUM(H19)*SUM(H18)=0,"",IF(H18-H19>276,"Error: Footprint must be completed within 9 months of compliance period end","")) -> 
F21: Adjustments to benchmark for structural changes | G21: =IF(G10=0,"",G10) -> 
F22: Adjustments to turnover for structural changes | G22: =G11 -> 0
F25: Units | G25: Year -2 | L25: Year -1 | Q25: Year 0
G26: Year end date | L26: Year end date | Q26: Year end date | W26: Activity Data Source | X26: Assessor Comments
G27: =IF($H$19="","",DATE(YEAR($H$19)-2,MONTH($H$19),DAY($H$19))) ->  | L27: =IF($H$19="","",DATE(YEAR($H$19)-1,MONTH($H$19),DAY($H$19))) ->  | Q27: =IF($H$19=0,"",$H$19) ->  | W27: e.g. e.g. from waste transfer notes, software packages, or spreadsheets, raw data evidence presented in evidence pack | X27: e.g. explanation of data quality, large year-on-year changes,etc.
D29: Waste Code | E29: Waste Type | F29: Unit | G29: Total | H29: Reuse | I29: Recycle | J29: Energy recovery | K29: Disposal | L29: Total | M29: Reuse | N29: Recycle | O29: Energy recovery | P29: Disposal | Q29: Total | R29: Reuse | S29: Recycle | T29: Energy recovery | U29: Disposal
D30: 01 | E30: WASTES RESULTING FROM EXPLORATION, MINING, QUARRYING, AND PHYSICAL AND CHEMICAL TREATMENT OF MINERALS | F30: Tonnes | G30: =IF(SUM(H30:K30)=0,"-",SUM(H30:K30)) -> - | H30: =IF(SUM(H31:H53)=0,"-",SUM(H31:H53)) -> - | I30: =IF(SUM(I31:I53)=0,"-",SUM(I31:I53)) -> - | J30: - | K30: - | L30: =IF(SUM(M30:P30)=0,"-",SUM(M30:P30)) -> - | M30: =IF(SUM(M31:M53)=0,"-",SUM(M31:M53)) -> - | N30: =IF(SUM(N31:N53)=0,"-",SUM(N31:N53)) -> - | O30: - | P30: - | Q30: =IF(SUM(R30:U30)=0,"-",SUM(R30:U30)) -> - | R30: =IF(SUM(R31:R53)=0,"-",SUM(R31:R53)) -> - | S30: =IF(SUM(S31:S53)=0,"-",SUM(S31:S53)) -> - | T30: - | U30: -
D31: 01 01 01 | E31: wastes from mineral metalliferous excavation | F31: Tonnes | G31: =IF(SUM(H31:K31)=0,"-",SUM(H31:K31)) -> - | L31: =IF(SUM(M31:P31)=0,"-",SUM(M31:P31)) -> - | Q31: =IF(SUM(R31:U31)=0,"-",SUM(R31:U31)) -> -
D32: 01 01 02 | E32: wastes from mineral non-metalliferous excavation | F32: Tonnes | G32: - | L32: - | Q32: -
D33: 01 03 04* | E33: acid-generating tailings from processing of sulphide ore | F33: Tonnes | G33: - | L33: - | Q33: -
D34: 01 03 05* | E34: other tailings containing dangerous substances | F34: Tonnes | G34: - | L34: - | Q34: -
D35: 01 03 06 | E35: tailings other than those mentioned in 01 03 04 and 01 03 05 | F35: Tonnes | G35: - | L35: - | Q35: -
D36: 01 03 07* | E36: other wastes containing dangerous substances from physical and chemical processing of metalliferous minerals | F36: Tonnes | G36: - | L36: - | Q36: -
D37: 01 03 08 | E37: dusty and powdery wastes other than those mentioned in 01 03 07 | F37: Tonnes | G37: - | L37: - | Q37: -
D38: 01 03 09 | E38: red mud from alumina production other than the wastes mentioned in 01 03 07 | F38: Tonnes | G38: - | L38: - | Q38: -
D39: 01 03 99 | E39: wastes not otherwise specified | F39: Tonnes | G39: - | L39: - | Q39: -
D40: 01 04 07* | E40: wastes containing dangerous substances from physical and chemical processing of non-metalliferous minerals | F40: Tonnes | G40: - | L40: - | Q40: -
D41: 01 04 08 | E41: waste gravel and crushed rocks other than those mentioned in 01 04 07 | F41: Tonnes | G41: - | L41: - | Q41: -
D42: 01 04 09 | E42: waste sand and clays | F42: Tonnes | G42: - | L42: - | Q42: -
D43: 01 04 10 | E43: dusty and powdery wastes other than those mentioned in 01 04 07 | F43: Tonnes | G43: - | L43: - | Q43: -
D44: 01 04 11 | E44: wastes from potash and rock salt processing other than those mentioned in 01 04 07 | F44: Tonnes | G44: - | L44: - | Q44: -
D45: 01 04 12 | E45: tailings and other wastes from washing and cleaning of minerals other than those mentioned in 01 04 07 and 01 04 11 | F45: Tonnes | G45: - | L45: - | Q45: -
D46: 01 04 13 | E46: wastes from stone cutting and sawing other than those mentioned in 01 04 07 | F46: Tonnes | G46: - | L46: - | Q46: -
D47: 01 04 99 | E47: wastes not otherwise specified | F47: Tonnes | G47: - | L47: - | Q47: -
D48: 01 05 04 | E48: freshwater drilling muds and wastes | F48: Tonnes | G48: - | L48: - | Q48: -
D49: 01 05 05* | E49: oil-containing drilling muds and wastes | F49: Tonnes | G49: - | L49: - | Q49: -
D50: 01 05 06* | E50: drilling muds and other drilling wastes containing dangerous substances | F50: Tonnes | G50: - | L50: - | Q50: -
D51: 01 05 07 | E51: barite-containing drilling muds and wastes other than those mentioned in 01 05 05 and 01 05 06 | F51: Tonnes | G51: - | L51: - | Q51: -
D52: 01 05 08 | E52: chloride-containing drilling muds and wastes other than those mentioned in 01 05 05 and 01 05 06 | F52: Tonnes | G52: - | L52: - | Q52: -
D53: 01 05 99 | E53: wastes not otherwise specified | F53: Tonnes | G53: - | L53: - | Q53: -
D54: 02 | E54: WASTES FROM AGRICULTURE, HORTICULTURE, AQUACULTURE, FORESTRY, HUNTING AND FISHING, FOOD PREPARATION AND PROCESSING | F54: Tonnes | G54: - | H54: =IF(SUM(H55:H92)=0,"-",SUM(H55:H93)) -> - | I54: =IF(SUM(I55:I92)=0,"-",SUM(I55:I93)) -> - | J54: - | K54: - | L54: - | M54: =IF(SUM(M55:M92)=0,"-",SUM(M55:M93)) -> - | N54: =IF(SUM(N55:N92)=0,"-",SUM(N55:N93)) -> - | O54: - | P54: - | Q54: - | R54: =IF(SUM(R55:R92)=0,"-",SUM(R55:R93)) -> - | S54: =IF(SUM(S55:S92)=0,"-",SUM(S55:S93)) -> - | T54: - | U54: -
D55: 02 01 01 | E55: sludges from washing and cleaning | F55: Tonnes | G55: - | L55: - | Q55: -
D56: 02 01 02 | E56: animal-tissue waste | F56: Tonnes | G56: - | L56: - | Q56: -
D57: 02 01 03 | E57: plant-tissue waste | F57: Tonnes | G57: - | L57: - | Q57: -
D58: 02 01 04 | E58: waste plastics (except packaging) | F58: Tonnes | G58: - | L58: - | Q58: -
D59: 02 01 06 | E59: animal faeces, urine and manure (including spoiled straw), effluent, collected separately and treated off-site | F59: Tonnes | G59: - | L59: - | Q59: -
D60: 02 01 07 | E60: wastes from forestry | F60: Tonnes | G60: - | L60: - | Q60: -
D61: 02 01 08* | E61: agrochemical waste containing dangerous substances | F61: Tonnes | G61: - | L61: - | Q61: -
D62: 02 01 09 | E62: agrochemical waste other than those mentioned in 02 01 08 | F62: Tonnes | G62: - | L62: - | Q62: -
D63: 02 01 10 | E63: waste metal | F63: Tonnes | G63: - | L63: - | Q63: -
D64: 02 01 99 | E64: wastes not otherwise specified | F64: Tonnes | G64: - | L64: - | Q64: -
D65: 02 02 01 | E65: sludges from washing and cleaning | F65: Tonnes | G65: - | L65: - | Q65: -
D66: 02 02 02 | E66: animal-tissue waste | F66: Tonnes | G66: - | L66: - | Q66: -
D67: 02 02 03 | E67: materials unsuitable for consumption or processing | F67: Tonnes | G67: - | L67: - | Q67: -
D68: 02 02 04 | E68: sludges from on-site effluent treatment | F68: Tonnes | G68: - | L68: - | Q68: -
D69: 02 02 99 | E69: wastes not otherwise specified | F69: Tonnes | G69: - | L69: - | Q69: -
D70: 02 03 01 | E70: sludges from washing, cleaning, peeling, centrifuging and separation | F70: Tonnes | G70: - | L70: - | Q70: -
D71: 02 03 02 | E71: wastes from preserving agents | F71: Tonnes | G71: - | L71: - | Q71: -
D72: 02 03 03 | E72: wastes from solvent extraction | F72: Tonnes | G72: - | L72: - | Q72: -
D73: 02 03 04 | E73: materials unsuitable for consumption or processing | F73: Tonnes | G73: - | L73: - | Q73: -
D74: 02 03 05 | E74: sludges from on-site effluent treatment | F74: Tonnes | G74: - | L74: - | Q74: -
D75: 02 03 99 | E75: wastes not otherwise specified | F75: Tonnes | G75: - | L75: - | Q75: -
D76: 02 04 01 | E76: soil from cleaning and washing beet | F76: Tonnes | G76: - | L76: - | Q76: -
D77: 02 04 02 | E77: off-specification calcium carbonate | F77: Tonnes | G77: - | L77: - | Q77: -
D78: 02 04 03 | E78: sludges from on-site effluent treatment | F78: Tonnes | G78: - | L78: - | Q78: -
D79: 02 04 99 | E79: wastes not otherwise specified | F79: Tonnes | G79: - | L79: - | Q79: -
D80: 02 05 01 | E80: materials unsuitable for consumption or processing | F80: Tonnes | G80: - | L80: - | Q80: -
D81: 02 05 02 | E81: sludges from on-site effluent treatment | F81: Tonnes | G81: - | L81: - | Q81: -
D82: 02 05 99 | E82: wastes not otherwise specified | F82: Tonnes | G82: - | L82: - | Q82: -
D83: 02 06 01 | E83: materials unsuitable for consumption or processing | F83: Tonnes | G83: - | L83: - | Q83: -
D84: 02 06 02 | E84: wastes from preserving agents | F84: Tonnes | G84: - | L84: - | Q84: -
D85: 02 06 03 | E85: sludges from on-site effluent treatment | F85: Tonnes | G85: - | L85: - | Q85: -
D86: 02 06 99 | E86: wastes not otherwise specified | F86: Tonnes | G86: - | L86: - | Q86: -
D87: 02 07 01 | E87: wastes from washing, cleaning and mechanical reduction of raw materials | F87: Tonnes | G87: - | L87: - | Q87: -
D88: 02 07 02 | E88: wastes from spirits distillation | F88: Tonnes | G88: - | L88: - | Q88: -
D89: 02 07 03 | E89: wastes from chemical treatment | F89: Tonnes | G89: - | L89: - | Q89: -
D90: 02 07 04 | E90: materials unsuitable for consumption or processing | F90: Tonnes | G90: - | L90: - | Q90: -
D91: 02 07 05 | E91: sludges from on-site effluent treatment | F91: Tonnes | G91: - | L91: - | Q91: -
D92: 02 07 99 | E92: wastes not otherwise specified | F92: Tonnes | G92: - | L92: - | Q92: -
D93: 03 | E93: WASTES FROM WOOD PROCESSING AND THE PRODUCTION OF PANELS AND FURNITURE, PULP, PAPER AND CARDBOARD | F93: Tonnes | G93: - | H93: =IF(SUM(H94:H112)=0,"-",SUM(H94:H112)) -> - | I93: =IF(SUM(I94:I112)=0,"-",SUM(I94:I112)) -> - | J93: - | K93: - | L93: - | M93: =IF(SUM(M94:M112)=0,"-",SUM(M94:M112)) -> - | N93: =IF(SUM(N94:N112)=0,"-",SUM(N94:N112)) -> - | O93: - | P93: - | Q93: - | R93: =IF(SUM(R94:R112)=0,"-",SUM(R94:R112)) -> - | S93: =IF(SUM(S94:S112)=0,"-",SUM(S94:S112)) -> - | T93: - | U93: -
D94: 03 01 01 | E94: waste bark and cork | F94: Tonnes | G94: - | L94: - | Q94: -
D95: 03 01 04* | E95: sawdust, shavings, cuttings, wood, particle board and veneer containing dangerous substances | F95: Tonnes | G95: =IF(SUM(H95:K95)=0,"-",SUM(H95:K95)) -> - | L95: =IF(SUM(M95:P95)=0,"-",SUM(M95:P95)) -> - | Q95: =IF(SUM(R95:U95)=0,"-",SUM(R95:U95)) -> -
D96: 03 01 05 | E96: sawdust, shavings, cuttings, wood, particle board and veneer other than those mentioned in 03 01 04 | F96: Tonnes | G96: - | L96: - | Q96: -
D97: 03 01 99 | E97: wastes not otherwise specified | F97: Tonnes | G97: - | L97: - | Q97: -
D98: 03 02 01* | E98: non-halogenated organic wood preservatives | F98: Tonnes | G98: - | L98: - | Q98: -
D99: 03 02 02* | E99: organochlorinated wood preservatives | F99: Tonnes | G99: - | L99: - | Q99: -
D100: 03 02 03* | E100: organometallic wood preservatives | F100: Tonnes | G100: - | L100: - | Q100: -
D101: 03 02 04* | E101: inorganic wood preservatives | F101: Tonnes | G101: - | L101: - | Q101: -
D102: 03 02 05* | E102: other wood preservatives containing dangerous substances | F102: Tonnes | G102: - | L102: - | Q102: -
D103: 03 02 99 | E103: wood preservatives not otherwise specified | F103: Tonnes | G103: - | L103: - | Q103: -
D104: 03 03 01 | E104: waste bark and wood | F104: Tonnes | G104: - | L104: - | Q104: -
D105: 03 03 02 | E105: green liquor sludge (from recovery of cooking liquor) | F105: Tonnes | G105: - | L105: - | Q105: -
D106: 03 03 05 | E106: de-inking sludges from paper recycling | F106: Tonnes | G106: - | L106: - | Q106: -
D107: 03 03 07 | E107: mechanically separated rejects from pulping of waste paper and cardboard | F107: Tonnes | G107: - | L107: - | Q107: -
D108: 03 03 08 | E108: wastes from sorting of paper and cardboard destined for recycling | F108: Tonnes | G108: - | L108: - | Q108: -
D109: 03 03 09 | E109: lime mud waste | F109: Tonnes | G109: - | L109: - | Q109: -
D110: 03 03 10 | E110: fibre rejects, fibre-, filler- and coating-sludges from mechanical separation | F110: Tonnes | G110: - | L110: - | Q110: -
D111: 03 03 11 | E111: sludges from on-site effluent treatment other than those mentioned in 03 03 10 | F111: Tonnes | G111: - | L111: - | Q111: -
D112: 03 03 99 | E112: wastes not otherwise specified | F112: Tonnes | G112: - | L112: - | Q112: -
D113: 04 | E113: WASTES FROM THE LEATHER, FUR AND TEXTILE INDUSTRIES | F113: Tonnes | G113: - | H113: =IF(SUM(H114:H134)=0,"-",SUM(H114:H134)) -> - | I113: =IF(SUM(I114:I134)=0,"-",SUM(I114:I134)) -> - | J113: - | K113: - | L113: - | M113: =IF(SUM(M114:M134)=0,"-",SUM(M114:M134)) -> - | N113: =IF(SUM(N114:N134)=0,"-",SUM(N114:N134)) -> - | O113: - | P113: - | Q113: - | R113: =IF(SUM(R114:R134)=0,"-",SUM(R114:R134)) -> - | S113: =IF(SUM(S114:S134)=0,"-",SUM(S114:S134)) -> - | T113: - | U113: -
D114: 04 01 01 | E114: fleshings and lime split wastes | F114: Tonnes | G114: - | L114: - | Q114: -
D115: 04 01 02 | E115: liming waste | F115: Tonnes | G115: - | L115: - | Q115: -
D116: 04 01 03* | E116: degreasing wastes containing solvents without a liquid phase | F116: Tonnes | G116: - | L116: - | Q116: -
D117: 04 01 04 | E117: tanning liquor containing chromium | F117: Tonnes | G117: - | L117: - | Q117: -
D118: 04 01 05 | E118: tanning liquor free of chromium | F118: Tonnes | G118: - | L118: - | Q118: -
D119: 04 01 06 | E119: sludges, in particular from on-site effluent treatment containing chromium | F119: Tonnes | G119: - | L119: - | Q119: -
D120: 04 01 07 | E120: sludges, in particular from on-site effluent treatment free of chromium | F120: Tonnes | G120: - | L120: - | Q120: -
D121: 04 01 08 | E121: waste tanned leather (blue sheetings, shavings, cuttings, buffing dust) containing chromium | F121: Tonnes | G121: - | L121: - | Q121: -
D122: 04 01 09 | E122: wastes from dressing and finishing | F122: Tonnes | G122: - | L122: - | Q122: -
D123: 04 01 99 | E123: wastes not otherwise specified | F123: Tonnes | G123: - | L123: - | Q123: -
D124: 04 02 09 | E124: wastes from composite materials (impregnated textile, elastomer, plastomer) | F124: Tonnes | G124: - | L124: - | Q124: -
D125: 04 02 10 | E125: organic matter from natural products (for example grease, wax) | F125: Tonnes | G125: - | L125: - | Q125: -
D126: 04 02 14* | E126: wastes from finishing containing organic solvents | F126: Tonnes | G126: - | L126: - | Q126: -
D127: 04 02 15 | E127: wastes from finishing other than those mentioned in 04 02 14 | F127: Tonnes | G127: - | L127: - | Q127: -
D128: 04 02 16* | E128: dyestuffs and pigments containing dangerous substances | F128: Tonnes | G128: - | L128: - | Q128: -
D129: 04 02 17 | E129: dyestuffs and pigments other than those mentioned in 04 02 16 | F129: Tonnes | G129: - | L129: - | Q129: -
D130: 04 02 19* | E130: sludges from on-site effluent treatment containing dangerous substances | F130: Tonnes | G130: - | L130: - | Q130: -
D131: 04 02 20 | E131: Sludges from on-site effluent treatment other than those mentioned in 04 02 19 | F131: Tonnes | G131: - | L131: - | Q131: -
D132: 04 02 21 | E132: wastes from unprocessed textile fibres | F132: Tonnes | G132: - | L132: - | Q132: -
D133: 04 02 22 | E133: wastes from processed textile fibres | F133: Tonnes | G133: - | L133: - | Q133: -
D134: 04 02 99 | E134: wastes not otherwise specified | F134: Tonnes | G134: - | L134: - | Q134: -
D135: 05 | E135: WASTES FROM PETROLEUM REFINING, NATURAL GAS PURIFICATION AND PYROLYTIC TREATMENT OF COAL | F135: Tonnes | G135: - | H135: =IF(SUM(H136:H159)=0,"-",SUM(H136:H159)) -> - | I135: =IF(SUM(I136:I159)=0,"-",SUM(I136:I159)) -> - | J135: - | K135: - | L135: - | M135: =IF(SUM(M136:M159)=0,"-",SUM(M136:M159)) -> - | N135: =IF(SUM(N136:N159)=0,"-",SUM(N136:N159)) -> - | O135: - | P135: - | Q135: - | R135: =IF(SUM(R136:R159)=0,"-",SUM(R136:R159)) -> - | S135: =IF(SUM(S136:S159)=0,"-",SUM(S136:S159)) -> - | T135: - | U135: -
D136: 05 01 02* | E136: desalter sludges | F136: Tonnes | G136: - | L136: - | Q136: -
D137: 05 01 03* | E137: tank bottom sludges | F137: Tonnes | G137: - | L137: - | Q137: -
D138: 05 01 04* | E138: acid alkyl sludges | F138: Tonnes | G138: - | L138: - | Q138: -
D139: 05 01 05* | E139: oil spills | F139: Tonnes | G139: - | L139: - | Q139: -
D140: 05 01 06* | E140: oily sludges from maintenance operations of the plant or equipment | F140: Tonnes | G140: - | L140: - | Q140: -
D141: 05 01 07* | E141: acid tars | F141: Tonnes | G141: - | L141: - | Q141: -
D142: 05 01 08* | E142: other tars | F142: Tonnes | G142: - | L142: - | Q142: -
D143: 05 01 09* | E143: sludges from on-site effluent treatment containing dangerous substances | F143: Tonnes | G143: - | L143: - | Q143: -
D144: 05 01 10 | E144: Sludges from on-site effluent treatment other than those mentioned in 05 01 09 | F144: Tonnes | G144: - | L144: - | Q144: -
D145: 05 01 11* | E145: wastes from cleaning of fuels with bases | F145: Tonnes | G145: - | L145: - | Q145: -
D146: 05 01 12* | E146: oil containing acids | F146: Tonnes | G146: - | L146: - | Q146: -
D147: 05 01 13 | E147: boiler feedwater sludges | F147: Tonnes | G147: - | L147: - | Q147: -
D148: 05 01 14 | E148: wastes from cooling columns | F148: Tonnes | G148: - | L148: - | Q148: -
D149: 05 01 15* | E149: spent filter clays | F149: Tonnes | G149: - | L149: - | Q149: -
D150: 05 01 16 | E150: sulphur-containing wastes from petroleum desulphurisation | F150: Tonnes | G150: - | L150: - | Q150: -
D151: 05 01 17 | E151: bitumen | F151: Tonnes | G151: - | L151: - | Q151: -
D152: 05 01 99 | E152: wastes not otherwise specified | F152: Tonnes | G152: - | L152: - | Q152: -
D153: 05 06 01* | E153: acid tars | F153: Tonnes | G153: - | L153: - | Q153: -
D154: 05 06 03* | E154: other tars | F154: Tonnes | G154: - | L154: - | Q154: -
D155: 05 06 04 | E155: waste from cooling columns | F155: Tonnes | G155: - | L155: - | Q155: -
D156: 05 06 99 | E156: wastes not otherwise specified | F156: Tonnes | G156: - | L156: - | Q156: -
D157: 05 07 01* | E157: wastes containing mercury | F157: Tonnes | G157: - | L157: - | Q157: -
D158: 05 07 02 | E158: wastes containing sulphur | F158: Tonnes | G158: - | L158: - | Q158: -
D159: 05 07 99 | E159: wastes not otherwise specified | F159: Tonnes | G159: =IF(SUM(H159:K159)=0,"-",SUM(H159:K159)) -> - | L159: =IF(SUM(M159:P159)=0,"-",SUM(M159:P159)) -> - | Q159: =IF(SUM(R159:U159)=0,"-",SUM(R159:U159)) -> -
D160: 06 | E160: WASTES FROM INORGANIC CHEMICAL PROCESSES | F160: Tonnes | G160: - | H160: =IF(SUM(H161:H208)=0,"-",SUM(H161:H208)) -> - | I160: =IF(SUM(I161:I208)=0,"-",SUM(I161:I208)) -> - | J160: - | K160: - | L160: - | M160: =IF(SUM(M161:M208)=0,"-",SUM(M161:M208)) -> - | N160: =IF(SUM(N161:N208)=0,"-",SUM(N161:N208)) -> - | O160: - | P160: - | Q160: - | R160: =IF(SUM(R161:R208)=0,"-",SUM(R161:R208)) -> - | S160: =IF(SUM(S161:S208)=0,"-",SUM(S161:S208)) -> - | T160: - | U160: -
D161: 06 01 01* | E161: sulphuric acid and sulphurous acid | F161: Tonnes | G161: - | L161: - | Q161: -
D162: 06 01 02* | E162: hydrochloric acid | F162: Tonnes | G162: - | L162: - | Q162: -
D163: 06 01 03* | E163: hydrofluoric acid | F163: Tonnes | G163: - | L163: - | Q163: -
D164: 06 01 04* | E164: phosphoric and phosphorous acid | F164: Tonnes | G164: - | L164: - | Q164: -
D165: 06 01 05* | E165: nitric acid and nitrous acid | F165: Tonnes | G165: - | L165: - | Q165: -
D166: 06 01 06* | E166: other acids | F166: Tonnes | G166: - | L166: - | Q166: -
D167: 06 01 99 | E167: wastes not otherwise specified | F167: Tonnes | G167: - | L167: - | Q167: -
D168: 06 02 01* | E168: calcium hydroxide | F168: Tonnes | G168: - | L168: - | Q168: -
D169: 06 02 03* | E169: ammonium hydroxide | F169: Tonnes | G169: - | L169: - | Q169: -
D170: 06 02 04* | E170: sodium and potassium hydroxide | F170: Tonnes | G170: - | L170: - | Q170: -
D171: 06 02 05* | E171: other bases | F171: Tonnes | G171: - | L171: - | Q171: -
D172: 06 02 99 | E172: wastes not otherwise specified | F172: Tonnes | G172: - | L172: - | Q172: -
D173: 06 03 11* | E173: solid salts and solutions containing cyanides | F173: Tonnes | G173: - | L173: - | Q173: -
D174: 06 03 13* | E174: solid salts and solutions containing heavy metals | F174: Tonnes | G174: - | L174: - | Q174: -
D175: 06 03 14 | E175: solid salts and solutions other than those mentioned in 06 03 11 and 06 03 13 | F175: Tonnes | G175: - | L175: - | Q175: -
D176: 06 03 15* | E176: metallic oxides containing heavy metals | F176: Tonnes | G176: - | L176: - | Q176: -
D177: 06 03 16 | E177: metallic oxides other than those mentioned in 06 03 15 | F177: Tonnes | G177: - | L177: - | Q177: -
D178: 06 03 99 | E178: wastes not otherwise specified | F178: Tonnes | G178: - | L178: - | Q178: -
D179: 06 04 03* | E179: wastes containing arsenic | F179: Tonnes | G179: - | L179: - | Q179: -
D180: 06 04 04* | E180: wastes containing mercury | F180: Tonnes | G180: - | L180: - | Q180: -
D181: 06 04 05* | E181: wastes containing other heavy metals | F181: Tonnes | G181: - | L181: - | Q181: -
D182: 06 04 99 | E182: wastes not otherwise specified | F182: Tonnes | G182: - | L182: - | Q182: -
D183: 06 05 02* | E183: sludges from on-site effluent treatment containing dangerous substances | F183: Tonnes | G183: - | L183: - | Q183: -
D184: 06 05 03 | E184: sludges from on-site effluent treatment other than those mentioned in 06 05 02 | F184: Tonnes | G184: - | L184: - | Q184: -
D185: 06 06 02* | E185: wastes containing dangerous sulphides | F185: Tonnes | G185: - | L185: - | Q185: -
D186: 06 06 03 | E186: wastes containing sulphides other than those mentioned in 06 06 02 | F186: Tonnes | G186: - | L186: - | Q186: -
D187: 06 06 99 | E187: wastes not otherwise specified | F187: Tonnes | G187: - | L187: - | Q187: -
D188: 06 07 01* | E188: wastes containing asbestos from electrolysis | F188: Tonnes | G188: - | L188: - | Q188: -
D189: 06 07 02* | E189: activated carbon from chlorine production | F189: Tonnes | G189: - | L189: - | Q189: -
D190: 06 07 03* | E190: barium sulphate sludge containing mercury | F190: Tonnes | G190: - | L190: - | Q190: -
D191: 06 07 04* | E191: solutions and acids, for example contact acid | F191: Tonnes | G191: - | L191: - | Q191: -
D192: 06 07 99 | E192: wastes not otherwise specified | F192: Tonnes | G192: - | L192: - | Q192: -
D193: 06 08 02 | E193: wastes containing chlorosilanes | F193: Tonnes | G193: - | L193: - | Q193: -
D194: 06 08 99 | E194: wastes not otherwise specified | F194: Tonnes | G194: - | L194: - | Q194: -
D195: 06 09 02 | E195: phosphorous slag | F195: Tonnes | G195: - | L195: - | Q195: -
D196: 06 09 03* | E196: calcium-based reaction wastes containing or contaminated with dangerous substances | F196: Tonnes | G196: - | L196: - | Q196: -
D197: 06 09 04 | E197: calcium-based reaction wastes other than those mentioned in 06 09 03 | F197: Tonnes | G197: - | L197: - | Q197: -
D198: 06 09 99 | E198: wastes not otherwise specified | F198: Tonnes | G198: - | L198: - | Q198: -
D199: 06 10 02* | E199: wastes containing dangerous substances | F199: Tonnes | G199: - | L199: - | Q199: -
D200: 06 10 99 | E200: wastes not otherwise specified | F200: Tonnes | G200: - | L200: - | Q200: -
D201: 06 11 01 | E201: calcium-based reaction wastes from titanium dioxide production | F201: Tonnes | G201: - | L201: - | Q201: -
D202: 06 11 99 | E202: wastes not otherwise specified | F202: Tonnes | G202: - | L202: - | Q202: -
D203: 06 13 01* | E203: inorganic plant protection products, wood-preserving agents and other biocides. | F203: Tonnes | G203: - | L203: - | Q203: -
D204: 06 13 02* | E204: spent activated carbon (except 06 07 02) | F204: Tonnes | G204: - | L204: - | Q204: -
D205: 06 13 03 | E205: carbon black | F205: Tonnes | G205: - | L205: - | Q205: -
D206: 06 13 04* | E206: wastes from asbestos processing | F206: Tonnes | G206: - | L206: - | Q206: -
D207: 06 13 05* | E207: soot | F207: Tonnes | G207: - | L207: - | Q207: -
D208: 06 13 99 | E208: wastes not otherwise specified | F208: Tonnes | G208: - | L208: - | Q208: -
D209: 07 | E209: WASTES FROM ORGANIC CHEMICAL PROCESSES | F209: Tonnes | G209: - | H209: =IF(SUM(H210:H286)=0,"-",SUM(H210:H286)) -> - | I209: =IF(SUM(I210:I286)=0,"-",SUM(I210:I286)) -> - | J209: - | K209: - | L209: - | M209: =IF(SUM(M210:M286)=0,"-",SUM(M210:M286)) -> - | N209: =IF(SUM(N210:N286)=0,"-",SUM(N210:N286)) -> - | O209: - | P209: - | Q209: - | R209: =IF(SUM(R210:R286)=0,"-",SUM(R210:R286)) -> - | S209: =IF(SUM(S210:S286)=0,"-",SUM(S210:S286)) -> - | T209: - | U209: -
D210: 07 01 01* | E210: aqueous washing liquids and mother liquors | F210: Tonnes | G210: - | L210: - | Q210: -
D211: 07 01 03* | E211: organic halogenated solvents, washing liquids and mother liquors | F211: Tonnes | G211: - | L211: - | Q211: -
D212: 07 01 04* | E212: other organic solvents, washing liquids and mother liquors | F212: Tonnes | G212: - | L212: - | Q212: -
D213: 07 01 07* | E213: halogenated still bottoms and reaction residues | F213: Tonnes | G213: - | L213: - | Q213: -
... 700 more rows

Sheet Reduction
D4: Carbon Trust Certification Limited
D5: Organisational Waste Calculation - Reduction
D11: Input Required
D12: Automatic calculation
D13: Cells to be completed by assessor
E15: Units | F15: ='Waste calculation'!G21 -> Year -2 | G15: ='Waste calculation'!$L$21 -> Year -1 | H15: ='Waste calculation'!$Q$21 -> Year 0
F16: Year end date | G16: Year end date | H16: Year end date
F17: =IF('Waste calculation'!$G$23="","",$G$23) ->  | G17: =IF('Waste calculation'!$L$23="","",$L$23) ->  | H17: =IF('Waste calculation'!$Q$23="","",$Q$23) -> 
D19: Waste total and benchmarks (unadjusted)
D20: Total waste | E20: Tonnes | F20: ='Waste calculation'!G915 -> - | G20: ='Waste calculation'!L915 -> - | H20: ='Waste calculation'!Q915 -> -
D22: Benchmark denominator (specify below) | J22: Comments | K22: Assessor comments:
D24: Turnover | E24: £mn
D26: Adjustments
D27: To ensure each year is measuring the same boundary of organisation, please record any adjustments for
D28: any structural changes (e.g., divestments, acquisitions, outsourcing NOT organic growth), or upstream/downstream arisings
D29: Any adjustments will be SUBTRACTED from the totals
D30: - please record any adjustments that should be subtracted as a positive number
D31: - please record any adjustments that should be added as a negative number
D33: Adjustments to arisings for structural changes | E33: Tonnes | F33: ='Waste adjustments'!G919 -> - | G33: ='Waste adjustments'!L919 -> - | H33: ='Waste adjustments'!Q919 -> -
D34: Adjustments to benchmark for structural changes | E34: =IF(E23=0,"",E23) ->  | F34: =IF(ISBLANK('Waste adjustments'!H21),"-",'Waste adjustments'!H21) -> - | G34: =IF(ISBLANK('Waste adjustments'!I21),"-",'Waste adjustments'!I21) -> - | H34: =IF(ISBLANK('Waste adjustments'!J21),"-",'Waste adjustments'!J21) -> -
D35: Adjustments to turnover for structural changes | E35: =E24 -> £mn | F35: =IF(ISBLANK('Waste adjustments'!H22),"-",'Waste adjustments'!H22) -> - | G35: =IF(ISBLANK('Waste adjustments'!I22),"-",'Waste adjustments'!I22) -> - | H35: =IF(ISBLANK('Waste adjustments'!J22),"-",'Waste adjustments'!J22) -> -
D36: Inflation | F36: n/a | G36: 0.0432 | H36: 0.0265
F37: 1 | G37: =F37*(1+G36) -> 1.0432 | H37: =G37*(1+H36) -> 1.0708448
D38: Turnover adjusted for inflation and structural changes | E38: =E24 -> £mn | F38: =IF(F24=0,"-",IF(F35="-",F24/F37,(F24-F35)/F37)) -> - | G38: =IF(G24=0,"-",IF(G35="-",G24/G37,(G24-G35)/G37)) -> - | H38: =IF(H24=0,"-",IF(H35="-",H24/H37,(H24-H35)/H37)) -> -
D39: Note: Default inflation figures are annual UK CPI figures Note: Adjusted turnover is based on year -2 as base year
D41: Footprint relative to benchmarks
D42: Absolute waste arisings | E42: Tonnes | F42: =IF(SUM(F20)=0,"-",(F20-SUM(F33))) -> - | G42: =IF(SUM(G20)=0,"-",(G20-SUM(G33))) -> - | H42: =IF(SUM(H20)=0,"-",(H20-SUM(H33))) -> -
D43: Relative benchmark | E43: =IF(E23="","",E42&" / "&IF(RIGHT(E23)="s",LEFT(E23,LEN(E23)-1),E23)) ->  | F43: =IF(ISERROR(F42/F23),"-",IF(F34="-",F42/F23,F42/(F23-F34))) -> - | G43: =IF(ISERROR(G42/G23),"-",IF(G34="-",G42/G23,G42/(G23-G34))) -> - | H43: =IF(ISERROR(H42/H23),"-",IF(H34="-",H42/H23,H42/(H23-H34))) -> -
D44: Turnover benchmark | E44: =IF(E24="","",E42&" / "&E24) -> Tonnes / £mn | F44: =IF(ISERROR(F42/F38),"-",F42/F38) -> - | G44: =IF(ISERROR(G42/G38),"-",G42/G38) -> - | H44: =IF(ISERROR(H42/H38),"-",H42/H38) -> -
D47: Requirement calculation | F47: Annual reduction requirement | G47: Reduction required if using 3 years of data | H47: Reduction required if using 2 years of data
D48: Absolute waste arisings | F48: 0 | G48: =F48 -> 0 | H48: =F48 -> 0
D49: Relative benchmark | F49: 0.014 | G49: =1-(1*(1-F49)^2)/AVERAGE(1,1*(1-F49)) -> 0.02095065458 | H49: =F49 -> 0.014
D50: Turnover benchmark | F50: 0.014 | G50: =1-(1*(1-F50)^2)/AVERAGE(1,1*(1-F50)) -> 0.02095065458 | H50: =F50 -> 0.014
D52: Reduction calculation | F52: Reduction requirement | G52: Historical data | H52: Base year data | J52: Assessment | K52: Reduction/improvement %
D53: Absolute waste arisings | F53: =IF(Reduction!F42>0,G48,H48) -> 0 | G53: =IF(F42="-",G42,AVERAGE(F42,G42)) -> - | H53: =Reduction!H42 -> - | J53: =IF(K53="-","-",IF(K53>F53,"PASS","FAIL")) -> - | K53: =IF(ISERROR(H53/G53),"-",1-H53/G53) -> -
D54: Relative benchmark | F54: =IF(Reduction!F43="-",H49,G49) -> 0.014 | G54: =IF(F43="-",G43,AVERAGE(F43,G43)) -> - | H54: =Reduction!H43 -> - | J54: =IF(K54="-","-",IF(K54>F54,"PASS","FAIL")) -> - | K54: =IF(ISERROR(H54/G54),"-",1-H54/G54) -> -
D55: Turnover benchmark | F55: =IF(Reduction!F44="-",H50,G50) -> 0.014 | G55: =IF(F44="-",G44,AVERAGE(F44,G44)) -> - | H55: =Reduction!H44 -> - | J55: =IF(K55="-","-",IF(K55>F55,"PASS","FAIL")) -> - | K55: -
D56: Hierarchy movement | F56: 0 | G56: ='Waste hierarchy calculation'!D24 -> - | H56: ='Waste hierarchy calculation'!E24 -> - | J56: =IF(K56="-","-",IF(K56>F56,"PASS","FAIL")) -> - | K56: -
D59: Other comments
D60: Please provide details of key assumptions, estimates, issues etc.

Sheet Data sources
D4: Carbon Trust Certification Limited
D5: Organisational Waste Calculation - Data Sources and Checking
D11: Input Required
D12: Cells to be completed by assessor
D14: Please list the data sources that have been used in completing this spreadsheet. This should include the source file name (if applicable), what data is included in that file, and the contact at the customer's organisation that supplied this data. Where possible, source files should be submitted as part of the evidence pack.
D16: Please insert more rows if required
D18: File name | E18: Data included | F18: Data supplied by
D52: For assessor use only:
D54: Site visits
D55: Please list the site visits made as part of this assessment
D56: Site name | E56: Site address | F56: Site description | G56: Date visited
D63: Checks on data
D64: Please describe what checks have been done to confirm the quality of the data

Sheet Summary of Results
D4: Carbon Trust Certification Limited
D5: Organisational Footprint Calculation - Summary of Results
D11: FOOTPRINT
E13: =Reduction!F15 -> Year -2 | F13: =Reduction!G15 -> Year -1 | G13: =Reduction!H15 -> Year 0
D14: Absolute waste arisings (tonnes) | E14: =Reduction!F20 -> - | F14: =Reduction!G20 -> - | G14: =Reduction!H20 -> -
D16: REDUCTION / HIERARCHY IMPROVEMENT
E18: Historical Data | F18: Current Data | G18: Reduction/improvement % | H18: Result
D19: Absolute waste arisings (tonnes) | E19: =Reduction!G53 -> - | F19: =Reduction!H53 -> - | G19: =Reduction!K53 -> - | H19: =Reduction!J53 -> -
D20: Relative benchmark | E20: =Reduction!G54 -> - | F20: =Reduction!H54 -> - | G20: =Reduction!K54 -> - | H20: =Reduction!J54 -> -
D21: Turnover benchmark | E21: =Reduction!G55 -> - | F21: =Reduction!H55 -> - | G21: =Reduction!K55 -> - | H21: =Reduction!J55 -> -
D22: Hierarchy movement | E22: ='Waste hierarchy calculation'!D24 -> - | F22: ='Waste hierarchy calculation'!E24 -> - | G22: ='Waste hierarchy calculation'!G24 -> - | H22: =Reduction!J56 -> -

Sheet Checklist
D4: Carbon Trust Certification Limited
D5: Organisational Footprint Calculation - Assessor Checklist
D11: Issue | G11: Action
D13: Are there any unusual years in the data? | E13: No | G13: =IF(E13="yes","Explain why in 'any other comments' box on 'Footprint Calculation' sheet","-") -> -
D14: Are there any estimated numbers in the data? | E14: No | G14: =IF(E14="yes","If a number is estimated, indicate this in the comments box on the same row and provide rationale","-") -> -
D16: Has the organisation acquired any businesses over the last 3 years? | E16: No | G16: =IF(E16="yes","Use Adjustments sheet to split out emissions from acquired businesses","-") -> -
D17: Has the organisation divested any businesses over the last 3 years? | E17: No | G17: =IF(E17="yes","Use Adjustments sheet to split out emissions from divested businesses","-") -> -
D19: Does the organisation outsource any significant operations, and has the proportion of outsourced business changed over the last 3 years? | E19: No | G19: =IF(E19="yes","If part of emissions reduction may be due to increase in outsourcing, use the adjustments sheet to split this out","-") -> -
D21: Does the organisation generate food waste? | E21: No | G21: =IF(E21="yes","Please notify CT","-") -> -
D23: Have you asked all these questions? | E23: Yes | G23: =IF(E23="yes","-","Data may be incomplete") -> -

Sheet Assessor footprint
D4: Carbon Trust Certification Limited
D5: Organisational Footprint Calculation - Assessor Travel Footprint
D11: Cells to be completed by assessor
D12: Automatic calculation
D14: For assessor use only:
E15: Assessors: Please calculate the footprint for your travel related to this assessment
E18: Description | G18: Mode of Transport | H18: Units (e.g. miles/km/litres) | I18: Use (Number of miles/km/litres) | J18: Emission factor (kgCO2e / unit) | K18: Footprint (kgCO2)
D19: Example | E19: 2 visits to Hull office | G19: petrol car | H19: miles | I19: 77 | J19: =G48 -> 0.251672096 | K19: =I19*J19 -> 19.37875139
D20: 1 | K20: =IF(I20="","",I20*J20) -> 
D21: 2
D22: 3
D23: 4
D24: 5
D25: 6
D26: 7
J28: Total footprint | K28: =SUM(K20:K26) -> 0
E29: Emission factors
E31: Petrol (per litre) | F31: ='Emissions Factors'!G20 -> 2.2144
E32: Diesel (per litre) | F32: ='Emissions Factors'!G19 -> 2.6008
F34: Per km | G34: Per mile
E35: Train | F35: ='Emissions Factors'!G84 -> 0.04904 | G35: =F35*1.6093 -> 0.078920072
E36: Tube | F36: ='Emissions Factors'!G86 -> 0.06361 | G36: =F36*1.6093 -> 0.102367573
E37: Bus | F37: ='Emissions Factors'!G83 -> 0.111620737 | G37: =F37*1.6093 -> 0.1796312521
E38: Taxi | F38: ='Emissions Factors'!G82 -> 0.20208 | G38: =F38*1.6093 -> 0.325207344
E40: Miles per gallon to emission factor conversion:
E42: For car travel, if the actual fuel economy is known emission factors can be calculated below.
E43: If not known, please select the appropriate factor from the "Emission Factors" sheet.
E45: mpg | F45: 40
F47: Per km | G47: Per mile
E48: Emission factor - Petrol | F48: =G48/1.6093 -> 0.156386066 | G48: =1/$F$45*4.5461*F31 -> 0.251672096
E49: Emission factor - Diesel | F49: =G49/1.6093 -> 0.1836745305 | G49: =1/$F$45*4.5461*F32 -> 0.295587422

Sheet Emissions Factors
D4: Carbon Trust Certification Limited
D5: Organisational Footprint Calculation - Emissions Factors
D11: Emissions factors - owned transport
D12: Should be measured by the most accurate possible method.
D13: For cars, the order of preference is as follows:
D14: 1. Use actual amount of fuel purchased
D15: 2. Base estimates on type of vehicles
D16: 3. Use an average figure for all cars
E18: Emissions by litres of fuel used
D19: 1. | E19: Diesel | F19: litres | G19: =G53 -> 2.6008
E20: Petrol | F20: litres | G20: =G57 -> 2.2144
E21: LPG | F21: litres | G21: =G69 -> 1.4929
D23: 2. | E23: Emissions by car type
G24: Petrol | H24: Diesel | I24: Unknown
E25: Mini | F25: km | G25: 0.14357 | H25: 0.10505 | I25: 0.143
E26: Supermini | F26: km | G26: 0.16341 | H26: 0.13742 | I26: 0.15981
E27: Lower Medium | F27: km | G27: 0.1948 | H27: 0.15548 | I27: 0.17867
E28: Upper | F28: km | G28: 0.22486 | H28: 0.17224 | I28: 0.19315
E29: Executive | F29: km | G29: 0.26075 | H29: 0.19536 | I29: 0.22158
E30: Luxury | F30: km | G30: 0.34564 | H30: 0.23601 | I30: 0.30489
E31: Sports | F31: km | G31: 0.25015 | H31: 0.16468 | I31: 0.24348
E32: 4x4 | F32: km | G32: 0.27681 | H32: 0.24191 | I32: 0.25154
E33: MPV | F33: km | G33: 0.21621 | H33: 0.19254 | I33: 0.20202
D35: 3. | E35: Average emission factors for all cars
G36: Petrol | H36: Diesel | I36: Unknown | J36: Hybrid | K36: LPG
E37: Average | F37: km | G37: 0.19811 | H37: 0.18322 | I37: 0.19023 | J37: 0.13103 | K37: 0.21212
D39: For travel by other vehicles (including motorcycles and goods vehicles):
D40: 1. Use actual fuel consumed if possible.
D41: 2. If not, please see DEFRA's emissions factors here: | H41: DEFRA 2013 emissions factors
D43: Emissions factors - fuel combustion and electricity
E44: Fuel Type | F44: Unit | G44: kgCO2e Scope 1
E45: Gas | F45: m3 | G45: 2.0194
E46: a.k.a. Natural Gas | F46: kWh | G46: 0.18404
E48: Oil | F48: tonnes | G48: 3427.2
E49: a.k.a. Gas Oil | F49: litres | G49: 2.9343
F50: kWh | G50: 0.27176
E52: Diesel | F52: tonnes | G52: 3100.1
E53: (average biofuel blend) | F53: litres | G53: 2.6008
F54: kWh | G54: 0.24512
E56: Petrol | F56: tonnes | G56: 3005.8
E57: (average biofuel blend) | F57: litres | G57: 2.2144
F58: kWh | G58: 0.23394
E60: Electricity (UK) | F60: kWh | G60: 0.44548
E61: Consumed | F61: MWh | G61: =G60*G77 -> 445.48
E63: Electricity (Ireland) | F63: kWh | G63: 0.45804
E64: Consumed | F64: MWh | G64: =G63*G77 -> 458.04
E66: Electricity (Italy) | F66: kWh | G66: 0.40631
E67: Consumed | F67: MWh | G67: =G66*G77 -> 406.31
E69: LPG | F69: litres | G69: 1.4929
F70: kWh | G70: 0.21452
D72: Conversion factors
E74: From | F74: To | G74: Multiply By
E75: miles | F75: km | G75: 1.60934
E76: passenger miles | F76: passenger km | G76: =G75 -> 1.60934
E77: MWh | F77: kWh | G77: 1000
D79: Emission Factors - Business Travel
E80: Business Travel by Ground
E81: Hire Car (Average) | F81: km | G81: =I37 -> 0.19023
E82: Taxi (Regular) | F82: km | G82: 0.20208
E83: Bus (Average) | F83: passenger km | G83: 0.111620737
E84: Rail (National Rail) | F84: passenger km | G84: 0.04904
E85: Rail (Eurostar) | F85: passenger km | G85: 0.01235
E86: London Underground | F86: passenger km | G86: 0.06361
E88: Business Travel by Air
G89: Without RF | H89: With RF
E90: Long haul:
E91: First Class | F91: passenger km | G91: 0.3497688 | H91: 0.66147
E92: Business Class | F92: passenger km | G92: 0.253584 | H92: 0.479574
E93: Premium Economy | F93: passenger km | G93: 0.1399032 | H93: 0.264582
E94: Economy | F94: passenger km | G94: 0.0874368 | H94: 0.165362
E95: Average | F95: passenger km | G95: 0.1197828 | H95: 0.226528
E96: Short haul:
E97: Business Class | F97: passenger km | G97: 0.1454652 | H97: 0.275101
E98: Economy | F98: passenger km | G98: 0.096984 | H98: 0.183404
E99: Average | F99: passenger km | G99: 0.1017684 | H99: 0.192457
E100: Domestic:
E101: Average | F101: passenger km | G101: 0.1727568 | H101: 0.326615
D105: Emission Factors - Fugitive Emissions
E106: Fuel Type | F106: Unit | G106: kgCO2e Scope 1
E107: HFC - 22/R22 | F107: tonnes | G107: =G108*1000 -> 1810000
F108: kg | G108: 1810
E110: HFE - 134a | F110: tonnes | G110: =G111*1000 -> 1300000
F111: kg | G111: 1300
E113: HFE - 143a | F113: tonnes | G113: =G114*1000 -> 3800000
F114: kg | G114: 3800
E116: R404A | F116: tonnes | G116: =G117*1000 -> 3260000
F117: kg | G117: 3260
E119: R407A | F119: tonnes | G119: =G120*1000 -> 1770000
F120: kg | G120: 1770
E122: R407C | F122: tonnes | G122: =G123*1000 -> 1526000
F123: kg | G123: 1526
E125: R410A | F125: tonnes | G125: =G126*1000 -> 1725000
F126: kg | G126: 1725
K127: v1_0
